bitfinex/quotes_SOLUSD_20240814
["timestamp","ask_amount","ask_price","bid_price","bid_amount"]
[1723623453180,0.12549,145.19,145.14,6.3553]
[1723623453966,0.12549,145.2,145.14,6.3553]
[1723623454269,0.25098,145.2,145.14,6.3553]
[1723623455052,7.13798,145.2,145.14,6.3553]
[1723623455757,0.12549,145.18,145.14,6.3553]
[1723623455962,0.12549,145.2,145.14,6.3553]
[1723623456165,7.01189,145.22,145.14,6.3553]
[1723623456387,7.13758,145.21,145.14,6.3553]
[1723623456593,0.25098,145.21,145.14,6.3553]
[1723623457089,31.97,145.23,145.14,6.3553]
[1723623457255,23.26155662,145.31,145.15,47.6038]
[1723623457460,31.97,145.28,145.15,47.6038]
[1723623457656,6.8851,145.24,145.15,47.6038]
[1723623457860,6.8858,145.23,145.15,15.6338]
[1723623458270,6.8861,145.22,145.15,15.6338]
[1723623458476,7.01119,145.23,145.15,15.6338]
[1723623459268,0.12549,145.22,145.15,15.6338]
[1723623459461,0.25098,145.22,145.15,15.6338]
[1723623459658,0.12549,145.23,145.15,15.6338]
[1723623459901,0.50196,145.23,145.15,15.6338]
[1723623460081,0.12549,145.23,145.15,15.6338]
[1723623460460,7.26217,145.23,145.15,15.6338]
[1723623460894,0.12549,145.21,145.15,15.6338]
[1723623461190,32.09549,145.2,145.15,15.6338]
[1723623461363,7.01349,145.18,145.15,15.6338]
[1723623461564,0.25098,145.19,145.15,15.6338]
[1723623461759,0.25098,145.21,145.15,15.6338]
[1723623461962,0.25098,145.2,145.15,15.6338]
[1723623462391,0.12549,145.23,145.15,15.6338]
[1723623462692,20.25098,145.23,145.15,15.6338]
[1723623462870,6.887,145.2,145.15,15.6338]
[1723623463072,0.12549,145.21,145.15,15.6338]
[1723623463266,7.13758,145.21,145.15,15.6338]
[1723623463673,0.25098,145.2,145.15,15.6338]
[1723623464085,6.8862,145.22,145.15,15.6338]
[1723623464268,0.25098,145.21,145.15,15.6338]
[1723623465398,0.12549,145.23,145.15,15.6338]
[1723623465763,0.12549,145.24,145.15,15.6338]
[1723623466167,6.8852,145.24,145.15,15.6338]
[1723623466409,0.12549,145.23,145.15,15.6338]
[1723623466769,7.13668,145.23,145.15,15.6338]
[1723623467094,6.8861,145.22,145.15,15.6338]
[1723623467309,0.25098,145.23,145.15,15.6338]
[1723623467310,7.13668,145.23,145.15,15.6338]
[1723623467972,6.8862,145.22,145.15,15.6338]
[1723623468287,6.8874,145.2,145.15,15.6338]
[1723623468879,52.26317,145.21,145.15,15.6338]
[1723623469079,0.12549,145.2,145.15,15.6338]
[1723623470293,7.01249,145.2,145.15,15.6338]
[1723623470674,0.12549,145.2,145.15,15.6338]
[1723623470874,0.37647,145.21,145.15,15.6338]
[1723623472083,6.8858,145.23,145.15,15.6338]
[1723623472511,31.97,145.26,145.15,15.6338]
[1723623472672,31.97,145.3,145.18,15.8628]
[1723623472876,6.8835,145.28,145.19,26.1255]
[1723623473095,6.8837,145.27,145.19,26.1255]
[1723623473301,31.97,145.3,145.19,26.1255]
[1723623473302,6.8842,145.26,145.19,26.1255]
[1723623473678,6.8837,145.27,145.19,26.1255]
[1723623474076,31.97,145.3,145.19,26.1255]
[1723623474271,6.8835,145.28,145.19,26.1255]
[1723623474775,31.97,145.3,145.19,26.1255]
[1723623474776,6.8828,145.29,145.19,26.1255]
[1723623475592,6.8824,145.3,145.2,15.2904]
[1723623475888,6.8824,145.3,145.21,20.0]
[1723623476703,31.97,145.32,145.21,20.0]
[1723623476906,31.97,145.3,145.21,20.0]
[1723623477086,6.8829,145.29,145.21,20.0]
[1723623477891,6.8832,145.28,145.21,20.0]
[1723623478584,7.00839,145.29,145.21,20.0]
[1723623478789,7.25877,145.3,145.21,20.0]
[1723623479106,0.25098,145.3,145.21,51.97]
[1723623479286,6.8805,145.34,145.23,31.97]
[1723623479475,31.97,145.36,145.24,1.37654009]
[1723623479676,31.97,145.36,145.24,20.0]
[1723623479677,6.8816,145.32,145.24,20.0]
[1723623480213,6.8809,145.33,145.24,20.0]
[1723623480378,6.8828,145.29,145.25,22.0976]
[1723623480807,6.8832,145.28,145.25,22.0976]
[1723623480990,6.8829,145.29,145.25,22.0976]
[1723623481504,0.12549,145.29,145.25,22.0976]
[1723623481692,0.25098,145.29,145.25,22.0976]
[1723623481888,0.12549,145.29,145.25,22.0976]
[1723623483498,45.50196,145.3,145.25,22.0976]
[1723623483688,31.97,145.34,145.25,22.0976]
[1723623483895,6.8814,145.32,145.25,22.0976]
[1723623484213,6.8826,145.3,145.25,22.0976]
[1723623484805,6.8819,145.31,145.25,22.0976]
[1723623485013,0.12549,145.3,145.25,22.0976]
[1723623485182,45.50196,145.3,145.25,22.0976]
[1723623486100,52.38436,145.3,145.25,22.0976]
[1723623487819,31.97,145.34,145.25,22.0976]
[1723623488121,20.12549,145.33,145.25,22.0976]
[1723623488313,0.12549,145.31,145.25,22.0976]
[1723623488622,6.8827,145.29,145.25,22.0976]
[1723623489207,6.8825,145.3,145.25,22.0976]
[1723623489715,0.37647,145.31,145.25,22.0976]
[1723623490232,0.12549,145.3,145.25,22.0976]
[1723623490716,45.12549,145.3,145.25,22.0976]
[1723623490891,0.12549,145.29,145.25,22.0976]
[1723623491099,6.8838,145.27,145.25,22.0976]
[1723623491295,6.8838,145.27,145.18,22.1798]
[1723623491813,7.00919,145.27,145.18,22.1798]
[1723623492131,6.8851,145.24,145.18,22.1798]
[1723623492318,7.13688,145.23,145.18,22.1798]
[1723623492623,0.25098,145.23,145.18,22.1798]
[1723623493022,0.12549,145.22,145.18,22.1798]
[1723623493211,0.25098,145.22,145.18,22.1798]
[1723623495414,0.25098,145.21,145.18,22.1798]
[1723623497326,0.25098,145.22,145.18,22.1798]
[1723623498921,7.13748,145.21,145.18,22.1798]
[1723623499124,0.25098,145.2,145.13,22.2428]
[1723623499307,0.12549,145.2,145.14,20.0]
[1723623499642,0.25098,145.21,145.14,20.0]
[1723623499810,0.12549,145.22,145.14,20.0]
[1723623500006,0.50196,145.22,145.14,20.0]
[1723623501707,0.12549,145.22,145.14,20.0]
[1723623501899,0.12549,145.25,145.14,20.0]
[1723623502105,7.01019,145.25,145.14,20.0]
[1723623502305,6.8851,145.24,145.14,20.0]
[1723623502605,6.884,145.27,145.17,6.2249]
[1723623503104,0.12549,145.26,145.17,6.2249]
[1723623503300,6.8849,145.25,145.17,6.2249]
[1723623503527,0.12549,145.24,145.17,6.2249]
[1723623503710,0.25098,145.24,145.17,6.2249]
[1723623504726,0.12549,145.26,145.18,20.0]
[1723623504929,7.38616,145.26,145.18,20.0]
[1723623505424,7.13518,145.26,145.18,20.0]
[1723623506127,0.25098,145.26,145.19,16.2024]
[1723623506710,0.12549,145.25,145.19,16.2024]
[1723623506900,0.25098,145.25,145.19,16.2024]
[1723623507101,8.85744752,145.25,145.19,16.2024]
[1723623507328,7.13618,145.24,145.19,16.2024]
[1723623507516,0.25098,145.23,145.19,16.2024]
[1723623515613,0.12549,145.22,145.19,16.2024]
[1723623515832,0.25098,145.22,145.19,16.2024]
[1723623518535,0.12549,145.2,145.15,15.3529]
[1723623518860,0.25098,145.2,145.15,15.3529]
[1723623519036,0.12549,145.2,145.15,15.3529]
[1723623519230,0.25098,145.21,145.15,15.3529]
[1723623520359,0.12549,145.2,145.15,15.3529]
[1723623520654,0.25098,145.2,145.15,15.3529]
[1723623520960,0.25098,145.19,145.15,15.3529]
[1723623524739,0.12549,145.2,145.15,15.3529]
[1723623525043,0.12549,145.22,145.15,15.3529]
[1723623525232,52.38826,145.22,145.15,15.3529]
[1723623525430,0.12549,145.2,145.15,15.3529]
[1723623525666,0.50196,145.2,145.15,15.3529]
[1723623527972,12.77,145.19,145.13,6.5019]
[1723623528265,12.77,145.19,145.09,6.0484]
[1723623528266,0.12549,145.14,145.09,6.0484]
[1723623528569,30.12549,145.14,145.09,6.0484]
[1723623528739,0.25098,145.13,145.09,6.0484]
[1723623529069,1.97393952,145.13,145.09,6.0484]
[1723623529361,0.25098,145.13,145.09,6.0484]
[1723623529765,30.25098,145.13,145.09,6.0484]
[1723623529943,30.25098,145.13,145.08,15.7357]
[1723623532262,1.72295582,145.12,145.08,15.7357]
[1723623532463,30.25098,145.13,145.08,15.7357]
[1723623533470,9.2978895,145.2,145.08,15.7357]
[1723623533471,83.97359,145.18,145.08,15.7357]
[1723623533776,7.26497,145.17,145.08,15.7357]
[1723623534063,45.12549,145.16,145.08,15.7357]
[1723623534270,0.37647,145.15,145.08,15.7357]
[1723623534645,15.9839,145.19,145.09,31.96]
[1723623534967,6.8861,145.22,145.11,31.96]
[1723623535143,6.8862,145.22,145.11,31.96]
[1723623535343,6.8862,145.22,145.12,20.0]
[1723623535550,6.8867,145.21,145.12,20.0]
[1723623535748,47.8059,145.23,145.13,15.9045]
[1723623536045,13.0496,145.24,145.13,15.9045]
[1723623536046,38.8447,145.25,145.14,20.0]
[1723623536471,38.8447,145.25,145.15,6.4612]
[1723623536670,6.8851,145.24,145.16,20.0]
[1723623537436,8.60702252,145.24,145.16,20.0]
[1723623537843,38.8457,145.23,145.16,20.0]
[1723623538163,38.8456,145.23,145.16,20.0]
[1723623538341,31.96,145.23,145.15,6.4612]
[1723623538551,0.12549,145.22,145.15,6.4612]
[1723623538765,0.50196,145.22,145.15,6.4612]
[1723623539068,0.37647,145.22,145.15,6.4612]
[1723623539241,0.25098,145.22,145.16,20.0]
[1723623539569,31.96,145.25,145.16,20.0]
[1723623539771,6.8846,145.25,145.16,20.0]
[1723623540347,6.8843,145.26,145.16,20.0]
[1723623540543,16.5035,145.27,145.16,51.96]
[1723623540768,6.8826,145.3,145.18,31.96]
[1723623541268,6.8832,145.28,145.19,20.0]
[1723623541471,31.96,145.29,145.19,20.0]
[1723623541644,6.8834,145.28,145.18,20.0]
[1723623542475,0.12549,145.27,145.18,20.0]
[1723623542672,0.37647,145.27,145.18,20.0]
[1723623542857,47.2223,145.31,145.2,38.4102]
[1723623543060,15.2623,145.31,145.21,21.37596399]
[1723623543466,47.2223,145.31,145.21,20.0]
[1723623543775,1.72116715,145.3,145.21,20.0]
[1723623543976,1.72128226,145.29,145.21,20.0]
[1723623544180,31.96,145.29,145.21,20.0]
[1723623544381,45.25098,145.28,145.21,20.0]
[1723623544979,0.25098,145.27,145.21,20.0]
[1723623545192,0.37647,145.26,145.2,6.4502]
[1723623545352,0.25098,145.26,145.2,6.4502]
[1723623545676,0.12549,145.25,145.2,6.4502]
[1723623545977,54.1045,145.31,145.2,6.4502]
[1723623546166,38.8422,145.31,145.22,15.5321]
[1723623546484,8.60372993,145.3,145.22,15.5321]
[1723623546648,38.8419,145.31,145.22,15.5321]
[1723623547096,31.96,145.31,145.22,15.5321]
[1723623547262,31.96,145.33,145.23,20.0]
[1723623547466,6.8813,145.32,145.23,20.0]
[1723623547856,31.96,145.33,145.24,1.37593911]
[1723623548150,23.8026,145.36,145.24,6.2571]
[1723623548151,38.84,145.35,145.24,6.2571]
[1723623548359,38.84,145.35,145.25,20.0]
[1723623548778,6.8805,145.34,145.25,20.0]
[1723623549357,0.12549,145.34,145.25,20.0]
[1723623549573,0.12549,145.31,145.25,20.0]
[1723623549760,45.50196,145.31,145.25,20.0]
[1723623550680,0.50196,145.31,145.25,20.0]
[1723623551754,0.37647,145.31,145.25,20.0]
[1723623552075,38.841,145.33,145.25,20.0]
[1723623552275,31.96,145.37,145.25,20.0]
[1723623552483,65.12549,145.36,145.25,20.0]
[1723623552663,45.12549,145.36,145.25,20.0]
[1723623552984,6.8797,145.36,145.27,15.1688]
[1723623553159,6.8797,145.36,145.28,1.37532616]
[1723623553365,6.8797,145.36,145.27,15.1688]
[1723623554303,0.12549,145.34,145.27,15.1688]
[1723623554474,0.25098,145.34,145.27,15.1688]
[1723623554972,0.12549,145.32,145.27,15.1688]
[1723623555179,52.13258,145.32,145.27,15.1688]
[1723623555378,0.25098,145.31,145.27,15.1688]
[1723623555685,0.25098,145.3,145.25,20.0]
[1723623555880,45.25098,145.3,145.25,20.0]
[1723623556497,0.25098,145.29,145.25,20.0]
[1723623556684,0.12549,145.28,145.25,20.0]
[1723623557400,1.97209422,145.28,145.24,6.2571]
[1723623557604,0.12549,145.27,145.24,6.2571]
[1723623558101,0.12549,145.27,145.23,16.0813]
[1723623558312,1.97230145,145.27,145.23,16.0813]
[1723623558480,0.25098,145.26,145.23,16.0813]
[1723623558799,0.12549,145.25,145.23,16.0813]
[1723623559101,0.12549,145.25,145.2,22.9677]
[1723623559980,0.25098,145.26,145.2,22.9677]
[1723623560184,0.12549,145.28,145.2,22.9677]
[1723623560397,2.22327536,145.28,145.2,22.9677]
[1723623560584,47.22327536,145.28,145.2,22.9677]
[1723623561199,45.50196,145.28,145.2,22.9677]
[1723623561402,0.50196,145.28,145.2,22.9677]
[1723623562911,1.72130284,145.27,145.2,22.9677]
[1723623563078,0.50196,145.26,145.2,22.9677]
[1723623563585,0.25098,145.26,145.2,22.9677]
[1723623563779,0.37647,145.27,145.2,22.9677]
[1723623564399,1.72139791,145.26,145.2,22.9677]
[1723623565382,2.09786842,145.27,145.2,22.9677]
[1723623565588,1.84689719,145.26,145.2,22.9677]
[1723623565793,0.12549,145.25,145.2,22.9677]
[1723623566108,8.73176897,145.25,145.2,22.9677]
[1723623566480,0.12549,145.24,145.2,22.9677]
[1723623566794,0.12549,145.25,145.2,22.9677]
[1723623566999,0.25098,145.26,145.2,22.9677]
[1723623567198,0.12549,145.25,145.2,22.9677]
[1723623567405,0.25098,145.25,145.2,22.9677]
[1723623567911,51.8834,145.28,145.2,22.9677]
[1723623568086,0.12549,145.27,145.2,22.9677]
[1723623568283,7.00929,145.27,145.2,22.9677]
[1723623568486,6.8842,145.26,145.2,22.9677]
[1723623568687,0.12549,145.25,145.2,22.9677]
[1723623569181,7.26067,145.26,145.2,22.9677]
[1723623569413,0.12549,145.24,145.2,22.9677]
[1723623569598,2.09819793,145.24,145.2,22.9677]
[1723623569793,0.37647,145.24,145.2,22.9677]
[1723623570997,0.37647,145.24,145.17,16.0859]
[1723623571208,7.01159,145.22,145.17,16.0859]
[1723623571514,0.25098,145.21,145.16,6.3008]
[1723623572792,0.12549,145.22,145.16,6.3008]
[1723623572987,0.50196,145.22,145.16,6.3008]
[1723623573303,31.96,145.27,145.16,6.3008]
[1723623573498,13.0421,145.28,145.18,16.0859]
[1723623573499,6.8834,145.28,145.18,16.0859]
[1723623573898,6.884,145.27,145.18,16.0859]
[1723623574217,6.8842,145.26,145.18,16.0859]
[1723623574621,6.884,145.27,145.18,16.0859]
[1723623574805,6.8844,145.26,145.18,16.0859]
[1723623575005,31.96,145.25,145.18,16.0859]
[1723623575521,6.8871,145.2,145.16,6.3008]
[1723623575726,0.12549,145.2,145.16,6.3008]
[1723623575929,0.25098,145.2,145.15,15.7152]
[1723623576126,0.25098,145.19,145.15,15.7152]
[1723623576341,1.97316923,145.19,145.15,15.7152]
[1723623577932,0.25098,145.19,145.15,15.7152]
[1723623578730,0.12549,145.22,145.15,15.7152]
[1723623578901,45.50196,145.22,145.16,1.37627113]
[1723623579103,45.50196,145.22,145.15,15.7152]
[1723623579815,45.50196,145.22,145.16,1.37609285]
[1723623580023,0.50196,145.22,145.16,1.37609285]
[1723623580410,0.50196,145.22,145.15,15.7152]
[1723623580706,0.50196,145.22,145.16,1.37523966]
[1723623580914,0.50196,145.22,145.15,15.7152]
[1723623581829,0.50196,145.22,145.16,20.0]
[1723623582330,0.12549,145.22,145.16,20.0]
[1723623582505,6.8845,145.26,145.17,7.62374858]
[1723623582704,0.12549,145.25,145.17,7.62374858]
[1723623583008,0.12549,145.25,145.18,1.37665374]
[1723623583213,0.12549,145.25,145.18,21.37665374]
[1723623583625,0.12549,145.24,145.18,20.0]
[1723623583849,0.25098,145.24,145.18,20.0]
[1723623584016,0.25098,145.24,145.19,1.37572839]
[1723623584017,0.25098,145.23,145.19,1.37572839]
[1723623584219,0.12549,145.23,145.19,1.37572839]
[1723623584933,0.12549,145.24,145.19,1.37572839]
[1723623585248,0.37647,145.25,145.19,1.37572839]
[1723623585455,0.37647,145.25,145.2,15.9709]
[1723623585743,7.13568,145.25,145.2,15.9709]
[1723623586113,6.8852,145.24,145.2,15.9709]
[1723623586429,0.25098,145.23,145.18,20.0]
[1723623595849,0.12549,145.23,145.18,20.0]
[1723623596043,0.12549,145.25,145.18,20.0]
[1723623596244,0.50196,145.25,145.18,20.0]
[1723623597742,9.1085009,145.25,145.18,20.0]
[1723623599281,0.12549,145.23,145.18,20.0]
[1723623599576,0.50196,145.23,145.18,20.0]
[1723623601760,0.25098,145.23,145.18,20.0]
[1723623602060,19.76979,145.26,145.18,20.0]
[1723623602266,0.12549,145.24,145.18,20.0]
[1723623603283,0.37647,145.25,145.18,20.0]
[1723623603463,16.5545,145.31,145.21,12.76]
[1723623603656,16.5545,145.31,145.23,18.8911]
[1723623604056,6.5315,145.34,145.23,18.8911]
[1723623604057,13.412,145.34,145.23,18.8911]
[1723623604291,12.76,145.33,145.24,20.0]
[1723623604991,16.6408,145.35,145.25,12.76]
[1723623605196,16.6408,145.35,145.27,12.76]
[1723623605565,16.6408,145.35,145.28,0.53625596]
[1723623605984,28.8365,145.38,145.28,16.21825596]
[1723623606179,6.879,145.37,145.28,15.682]
[1723623606402,33.58037862,145.37,145.28,15.682]
[1723623606565,31.86,145.35,145.28,15.682]
[1723623606869,31.86,145.37,145.28,15.682]
[1723623607071,40.45969588,145.37,145.28,15.682]
[1723623607278,0.12549,145.35,145.28,15.682]
[1723623607477,45.50196,145.35,145.28,15.682]
[1723623607789,0.12549,145.35,145.28,15.682]
[1723623607986,0.12549,145.35,145.29,26.3041]
[1723623608871,45.12549,145.35,145.29,26.3041]
[1723623609073,0.12549,145.35,145.29,26.3041]
[1723623609263,0.37647,145.35,145.29,26.3041]
[1723623609460,0.25098,145.35,145.29,26.3041]
[1723623610280,0.12549,145.35,145.29,26.3041]
[1723623610483,9.19627981,145.42,145.29,26.3041]
[1723623610484,6.8777,145.4,145.29,26.3041]
[1723623610796,6.8782,145.39,145.29,26.3041]
[1723623611000,6.8796,145.36,145.29,26.3041]
[1723623611702,0.50196,145.35,145.29,26.3041]
[1723623611872,45.50196,145.35,145.29,26.3041]
[1723623612895,0.37647,145.35,145.29,26.3041]
[1723623613099,0.25098,145.35,145.29,26.3041]
[1723623613682,0.12549,145.36,145.29,26.3041]
[1723623613982,7.00399,145.38,145.29,26.3041]
[1723623614198,45.25098,145.37,145.29,26.3041]
[1723623614392,0.25098,145.36,145.29,26.3041]
[1723623614610,0.25098,145.35,145.29,26.3041]
[1723623614808,0.12549,145.34,145.29,26.3041]
[1723623614991,45.0,145.37,145.29,26.3041]
[1723623615185,0.12549,145.38,145.29,26.3041]
[1723623615392,6.8793,145.37,145.29,26.3041]
[1723623615689,45.12549,145.36,145.29,26.3041]
[1723623616098,52.00489,145.36,145.29,26.3041]
[1723623616498,0.37647,145.35,145.29,26.3041]
[1723623616701,0.12549,145.34,145.29,26.3041]
[1723623618417,0.12549,145.33,145.29,26.3041]
[1723623618596,0.50196,145.33,145.28,15.682]
[1723623618785,0.12549,145.31,145.26,6.1071]
[1723623618989,45.50196,145.31,145.26,6.1071]
[1723623619797,31.86,145.35,145.26,6.1071]
[1723623620017,45.37647,145.34,145.26,6.1071]
[1723623620203,45.37647,145.34,145.27,20.0]
[1723623620718,45.25098,145.34,145.27,20.0]
[1723623624121,20.0,145.47,145.31,54.2179]
[1723623624316,6.8763,145.43,145.32,20.0]
[1723623624614,6.8766,145.42,145.32,20.0]
[1723623624789,6.8771,145.41,145.32,20.0]
[1723623625124,40.45753081,145.4,145.32,20.0]
[1723623625303,6.8786,145.38,145.32,20.0]
[1723623625508,8.59926727,145.37,145.32,20.0]
[1723623625812,31.86,145.36,145.31,22.3579]
[1723623626122,1.72044965,145.35,145.31,22.3579]
[1723623626420,47.09691965,145.35,145.31,22.3579]
[1723623626994,31.98549,145.34,145.27,22.1563]
[1723623627193,0.25098,145.33,145.27,22.1563]
[1723623627493,0.12549,145.32,145.27,22.1563]
[1723623629020,45.25098,145.33,145.27,22.1563]
[1723623629429,32.11098,145.32,145.27,22.1563]
[1723623629726,0.12549,145.3,145.24,6.4089]
[1723623629930,33.83195605,145.3,145.24,6.4089]
[1723623630219,0.25098,145.3,145.24,6.4089]
[1723623631297,0.25098,145.3,145.25,20.0]
[1723623631502,0.12549,145.29,145.25,20.0]
[1723623631803,0.12549,145.31,145.24,6.4089]
[1723623632007,31.86,145.34,145.25,20.0]
[1723623632205,45.25098,145.33,145.25,20.0]
[1723623632733,52.13178,145.33,145.25,20.0]
[1723623633721,0.25098,145.32,145.25,20.0]
[1723623633910,0.12549,145.31,145.25,20.0]
[1723623634824,1.84621344,145.31,145.25,20.0]
[1723623635825,1.72072251,145.3,145.26,21.4185]
[1723623636033,31.86,145.39,145.27,20.0]
[1723623636214,6.8797,145.36,145.27,20.0]
[1723623636933,1.72037063,145.35,145.27,20.0]
[1723623637243,38.739,145.37,145.27,20.0]
[1723623637438,0.12549,145.36,145.27,20.0]
[1723623637936,45.25098,145.36,145.27,20.0]
[1723623638143,0.25098,145.35,145.27,20.0]
[1723623638834,0.12549,145.34,145.27,20.0]
[1723623639036,0.12549,145.34,145.26,21.4185]
[1723623639037,1.97147834,145.34,145.26,21.4185]
[1723623639330,0.37647,145.33,145.26,21.4185]
[1723623639714,0.12549,145.32,145.26,21.4185]
[1723623640443,31.86,145.35,145.27,20.0]
[1723623640608,0.37647,145.34,145.27,20.0]
[1723623643317,0.12549,145.33,145.27,20.0]
[1723623649750,45.37647,145.34,145.27,20.0]
[1723623651956,6.8789,145.38,145.28,1.37562784]
[1723623652124,31.86,145.39,145.28,33.23562784]
[1723623652324,31.86,145.39,145.29,20.0]
[1723623652535,31.86,145.39,145.3,1.37543848]
[1723623652747,31.86,145.39,145.32,6.1085]
[1723623652933,31.86,145.39,145.32,7.48459672]
[1723623654331,0.25098,145.38,145.32,7.48459672]
[1723623654533,0.25098,145.37,145.33,1.3760497]
[1723623654831,48.0289,145.43,145.33,21.3760497]
[1723623655444,38.7363,145.43,145.33,21.3760497]
[1723623655627,31.86,145.43,145.33,21.3760497]
[1723623655829,31.86,145.45,145.34,49.18757029]
[1723623656052,6.875,145.46,145.35,20.0]
[1723623656354,38.7352,145.45,145.35,20.0]
[1723623656526,6.8757,145.44,145.35,20.0]
[1723623657247,45.50196,145.43,145.35,20.0]
[1723623657535,79.0814443,145.43,145.35,20.0]
[1723623657756,77.36196,145.43,145.35,20.0]
[1723623658360,84.23816,145.43,145.35,20.0]
[1723623659063,0.12549,145.4,145.35,20.0]
[1723623659233,45.50196,145.4,145.35,20.0]
[1723623660346,45.50196,145.4,145.35,21.33850326]
[1723623660651,45.50196,145.4,145.35,20.0]
[1723623660652,0.50196,145.4,145.35,20.0]
[1723623660851,45.50196,145.4,145.35,20.0]
[1723623661256,0.37647,145.4,145.35,20.0]
[1723623662564,0.12549,145.39,145.35,20.0]
[1723623662762,0.50196,145.39,145.35,20.0]
[1723623663062,0.50196,145.39,145.34,15.9519]
[1723623663360,32.36196,145.39,145.34,15.9519]
[1723623663558,45.0,145.38,145.34,15.9519]
[1723623663766,0.37647,145.37,145.34,15.9519]
[1723623665830,0.12549,145.36,145.34,15.9519]
[1723623667459,0.12549,145.36,145.32,6.1085]
[1723623668152,0.12549,145.32,145.28,6.449]
[1723623668349,45.50196,145.32,145.28,6.449]
[1723623669166,0.25098,145.32,145.28,6.449]
[1723623669353,0.12549,145.32,145.28,6.449]
[1723623670377,0.12549,145.34,145.28,6.449]
[1723623670560,45.50196,145.34,145.28,6.449]
[1723623671272,0.37647,145.34,145.29,20.0]
[1723623671975,31.86,145.37,145.29,20.0]
[1723623672169,45.50196,145.36,145.29,20.0]
[1723623672378,31.86,145.39,145.29,20.0]
[1723623672551,31.86,145.39,145.3,15.1115]
[1723623672757,31.86,145.39,145.31,20.0]
[1723623674183,0.12549,145.37,145.31,20.0]
[1723623674382,83.98998,145.37,145.31,20.0]
[1723623674550,0.12549,145.35,145.31,20.0]
[1723623674752,0.25098,145.35,145.31,20.0]
[1723623674983,0.25098,145.36,145.31,20.0]
[1723623675659,0.12549,145.37,145.31,20.0]
[1723623676049,0.25098,145.37,145.31,20.0]
[1723623676275,0.25098,145.36,145.31,20.0]
[1723623676487,0.25098,145.35,145.31,20.0]
[1723623677382,0.12549,145.35,145.31,20.0]
[1723623680761,31.86,145.37,145.31,20.0]
[1723623680965,0.12549,145.36,145.31,20.0]
[1723623681169,31.86,145.41,145.31,20.0]
[1723623681379,31.86,145.41,145.32,6.1906]
[1723623681579,31.86,145.41,145.33,20.0]
[1723623682171,31.86,145.41,145.34,15.5151]
[1723623682374,31.86,145.41,145.35,20.0]
[1723623683293,0.12549,145.4,145.35,20.0]
[1723623683664,0.12549,145.39,145.35,20.0]
[1723623683876,45.37647,145.39,145.35,20.0]
[1723623684070,0.12549,145.38,145.35,20.0]
[1723623684297,0.25098,145.38,145.35,20.0]
[1723623686797,0.25098,145.38,145.34,15.5151]
[1723623686967,1.9709361,145.38,145.34,15.5151]
[1723623687165,32.11098,145.37,145.34,15.5151]
[1723623687391,1.97109543,145.36,145.34,15.5151]
[1723623687695,0.25098,145.36,145.32,6.1906]
[1723623687998,0.12549,145.35,145.32,6.1906]
[1723623688693,33.83125431,145.35,145.3,16.3801]
[1723623688871,0.12549,145.34,145.3,16.3801]
[1723623689392,0.25098,145.34,145.3,16.3801]
[1723623689595,45.25098,145.34,145.3,16.3801]